bitfinex/quotes_ETHUSD_20240709
["timestamp","ask_amount","ask_price","bid_price","bid_amount"]
[1720499601157,2.2864,3085.0,3084.4,3.2421]
[1720499601338,2.2864,3085.0,3084.5,3.24192]
[1720499601539,2.2864,3085.0,3084.3,3.24218]
[1720499601994,2.51504,3085.0,3083.2,0.34920813]
[1720499602139,2.51504,3085.0,3084.3,3.24217]
[1720499602140,2.2864,3085.0,3084.3,3.24217]
[1720499602336,2.2864,3085.0,3084.1,3.2424]
[1720499602578,2.2864,3085.0,3084.4,3.2421]
[1720499602875,2.471,3085.6,3084.7,3.24172]
[1720499603079,3.207,3085.6,3084.7,3.24172]
[1720499603253,3.207,3085.6,3084.5,3.24199]
[1720499603575,3.207,3085.6,3084.7,3.24171]
[1720499604780,3.207,3085.6,3084.9,3.24152]
[1720499605441,2.471,3085.6,3084.9,3.24152]
[1720499605878,2.471,3085.6,3085.0,3.24145]
[1720499606081,2.471,3085.6,3085.3,3.24117]
[1720499606292,9.6399,3086.1,3085.3,3.24117]
[1720499607181,1.11299,3086.0,3085.3,3.24117]
[1720499607475,1.11299,3086.0,3085.1,3.24137]
[1720499607476,1.11299,3086.0,3085.1,3.24136]
[1720499607878,1.11299,3086.0,3084.9,3.24159]
[1720499608081,0.04972148,3085.9,3084.2,3.24229]
[1720499608391,0.04972148,3085.9,3084.2,3.24225]
[1720499608392,2.3786,3085.8,3084.2,3.24225]
[1720499608586,2.3786,3085.6,3084.3,3.24217]
[1720499608942,1.12311117,3085.5,3084.4,3.2421]
[1720499609177,1.12311117,3085.4,3084.4,3.2421]
[1720499609381,1.12312275,3085.5,3084.4,3.24209]
[1720499609586,1.12312275,3085.4,3084.4,3.24209]
[1720499609756,1.12312275,3085.4,3084.2,0.06483553]
[1720499609957,0.23786,3085.5,3084.7,3.24179]
[1720499610161,0.23786,3085.5,3084.5,6.48395]
[1720499610362,1.38470116,3085.4,3084.5,3.24194]
[1720499610562,1.12305516,3085.3,3084.6,3.2419]
[1720499610756,0.261646,3085.4,3084.6,3.2419]
[1720499610958,0.261646,3085.4,3084.4,3.2421]
[1720499611259,0.261646,3085.4,3083.5,0.34920813]
[1720499611260,2.4599,3085.2,3083.5,0.34920813]
[1720499611459,0.40802008,3085.1,3083.5,0.34920813]
[1720499611658,1.12313609,3085.0,3083.5,0.41404766]
[1720499611865,1.12313609,3085.0,3084.3,3.24213]
[1720499612073,2.4599,3085.2,3084.1,2.262]
[1720499612074,7.36,3085.2,3084.1,2.262]
[1720499612256,7.36,3085.2,3085.0,3.24142]
[1720499612474,2.2896,3085.8,3085.0,3.24142]
[1720499612802,1.38589623,3085.7,3085.0,3.24142]
[1720499612960,1.12298514,3085.6,3084.9,3.24149]
[1720499613159,0.26291109,3085.7,3084.9,3.24149]
[1720499613457,1.12294304,3085.6,3084.9,3.24149]
[1720499613679,0.36754541,3085.6,3085.0,3.24148]
[1720499613867,2.2896,3085.8,3085.0,3.24148]
[1720499614083,1.12288699,3085.7,3085.0,3.24148]
[1720499614398,1.12291419,3085.6,3085.0,3.24148]
[1720499614595,1.12291464,3085.5,3084.8,3.2417]
[1720499614818,0.99891109,3085.7,3084.3,3.24212]
[1720499614963,1.12296579,3085.6,3084.7,3.2418]
[1720499615292,1.12296579,3085.6,3084.4,6.24208]
[1720499615293,1.17268727,3085.5,3084.3,3.24215]
[1720499615504,1.12296579,3085.4,3084.3,3.24215]
[1720499615665,0.04972148,3085.3,3084.3,3.24215]
[1720499615868,3.61906579,3085.2,3083.8,3.24272]
[1720499616172,1.48984452,3085.1,3083.6,3.24291]
[1720499616485,1.17268727,3085.0,3084.1,3.24241]
[1720499616805,1.12296579,3084.9,3084.2,3.24232]
[1720499617497,0.04972148,3084.8,3084.1,3.24241]
[1720499617997,0.04972148,3084.8,3083.5,3.59221813]
[1720499617998,1.12328389,3084.7,3083.7,3.24278]
[1720499618210,1.17300537,3084.6,3083.7,3.24278]
[1720499618370,1.12336769,3084.5,3083.7,3.646347]
[1720499618576,1.17311966,3084.4,3083.7,3.646347]
[1720499618803,0.04972148,3084.3,3083.7,3.646347]
[1720499619009,7.36,3084.6,3083.8,3.24273]
[1720499619177,1.12341062,3084.5,3083.8,3.24273]
[1720499619374,1.12341062,3084.4,3083.8,3.24273]
[1720499619570,7.36,3084.6,3083.1,8.68324]
[1720499619571,7.36,3084.6,3083.2,0.0648504]
[1720499619800,7.36,3084.6,3084.2,3.24232]
[1720499620275,0.33951091,3085.9,3085.6,3.24081]
[1720499620708,2.4961,3086.5,3085.3,3.24117]
[1720499620889,1.63215161,3086.4,3085.1,3.24136]
[1720499621119,1.63215161,3086.4,3085.2,3.24126]
[1720499621120,1.1227424,3086.3,3085.2,3.24126]
[1720499621275,1.12278882,3086.2,3084.9,3.24156]
[1720499621481,2.4961,3086.1,3084.7,3.2418]
[1720499621672,1.42714694,3086.0,3084.8,3.24168]
[1720499621889,1.12284331,3085.9,3084.8,3.24168]
[1720499622101,0.04972148,3085.8,3084.6,3.24188]
[1720499622415,0.25458215,3086.0,3084.7,3.2418]
[1720499622416,1.12284331,3085.7,3084.7,3.2418]
[1720499622588,4.24011322,3086.1,3084.7,3.2418]
[1720499622589,1.39791153,3085.9,3084.8,3.2416]
[1720499622789,1.12284331,3085.8,3085.0,3.24147]
[1720499623194,1.12284331,3085.8,3085.2,3.24124]
[1720499623517,2.4961,3086.1,3085.2,3.24124]
[1720499623683,2.74571,3086.1,3085.2,3.24124]
[1720499624029,2.74571,3086.1,3085.4,3.24105]
[1720499624799,2.4961,3086.1,3085.4,3.24105]
[1720499625026,2.4961,3086.1,3085.5,0.06481788]
[1720499625230,2.4961,3086.1,3085.7,3.24074]
[1720499627152,2.4961,3086.1,3085.1,3.306162]
[1720499627354,0.24961,3086.0,3085.4,3.24106]
[1720499627951,0.29933148,3086.0,3085.0,3.24143]
[1720499628258,0.29933148,3086.0,3084.9,3.24157]
[1720499628259,1.12283962,3085.9,3084.9,3.24157]
[1720499628544,0.04972148,3085.8,3084.9,3.24157]
[1720499628960,1.12291082,3085.7,3084.7,3.24177]
[1720499629251,0.04972148,3085.9,3084.8,3.24168]
[1720499629436,1.69729414,3086.1,3085.7,3.24075]
[1720499629604,0.4995,3087.0,3086.6,3.2398]
[1720499629804,1.12250397,3086.9,3085.8,0.06479768]
[1720499630045,0.4995,3087.0,3085.8,0.06479768]
[1720499630046,0.4995,3087.0,3086.6,3.23979]
[1720499631053,0.04972148,3086.9,3085.7,3.0]
[1720499631202,0.79228,3087.0,3085.5,3.0]
[1720499631403,0.79228,3087.0,3086.1,3.24033]
[1720499631740,0.79228,3087.0,3085.9,3.24052]
[1720499632222,1.17223418,3086.9,3085.9,3.24052]
[1720499632419,0.19645142,3086.8,3085.7,3.24073]
[1720499632633,0.79228,3087.0,3085.7,3.24073]
[1720499632634,0.04972148,3086.7,3085.7,3.24073]
[1720499633258,0.84200148,3087.0,3085.7,3.24073]
[1720499633541,1.12256149,3086.9,3085.7,3.24073]
[1720499633741,1.36873927,3086.8,3085.7,3.24073]
[1720499634047,1.12256881,3086.7,3085.5,3.24095]
[1720499634235,1.12256881,3086.6,3085.8,3.24055]
[1720499634435,0.79228,3087.0,3085.9,3.24053]
[1720499634436,1.22759679,3086.9,3085.9,3.24053]
[1720499634658,1.32457996,3086.8,3085.9,3.24053]
[1720499634864,1.12259228,3086.7,3085.9,3.24053]
[1720499635712,1.12259228,3086.7,3085.1,3.0]
[1720499635910,2.2576,3086.6,3084.7,3.24173]
[1720499636113,1.46558366,3086.5,3084.7,3.24173]
[1720499636311,0.20198768,3086.8,3086.2,3.24014]
[1720499636946,0.20198768,3086.8,3086.3,3.24011]
[1720499637120,2.7571,3087.0,3086.5,3.23981]
[1720499638442,2.7571,3087.0,3086.3,3.2401]
[1720499638637,2.7571,3087.0,3086.4,3.24001]
[1720499639358,0.4995,3087.0,3086.6,3.23976]
[1720499640209,0.4995,3087.0,3086.4,3.24001]
[1720499640210,0.4995,3087.0,3086.9,3.23949]
[1720499640689,0.4995,3087.0,3086.5,3.23991]
[1720499640814,0.4995,3087.0,3086.1,3.0]
[1720499640815,0.4995,3087.0,3086.6,3.2398]
[1720499641515,2.7571,3087.0,3085.6,2.4002]
[1720499641712,3.03281,3087.0,3086.2,3.24022]
[1720499641941,3.03281,3087.0,3085.8,3.24062]
[1720499642259,0.4995,3087.0,3086.2,3.2402]
[1720499643047,2.4023,3086.8,3085.7,3.24073]
[1720499643268,2.4023,3086.8,3085.1,2.68918559]
[1720499643269,0.4995,3087.0,3086.1,3.24027]
[1720499643467,0.4995,3087.0,3086.2,3.30498531]
[1720499643617,0.4995,3087.0,3086.9,3.23949]
[1720499649682,0.4995,3087.0,3086.9,6.47898]
[1720499649888,0.4995,3087.0,3086.9,8.91008]
[1720499650181,0.0034,3087.4,3087.3,6.47814]
[1720499650476,0.1123514,3087.9,3087.8,3.23855]
[1720499650634,0.1123514,3087.9,3087.7,3.23861]
[1720499651038,0.1123514,3087.9,3087.1,3.23928]
[1720499651266,0.1123514,3087.9,3086.7,0.06477424]
[1720499651434,0.1123514,3087.9,3087.5,3.23886]
[1720499651635,2.5255514,3087.9,3086.8,3.23957]
[1720499651883,2.5255514,3087.9,3087.2,3.23916]
[1720499652176,2.5255514,3087.9,3087.1,3.23921]
[1720499652582,2.5255514,3087.9,3087.2,3.30387357]
[1720499652876,2.5255514,3087.9,3087.1,3.2392]
[1720499653175,2.5255514,3087.9,3087.2,3.3039136]
[1720499653380,0.1123514,3087.9,3087.3,0.06477335]
[1720499653542,0.1123514,3087.9,3087.8,6.4771]
[1720499653743,0.1123514,3087.9,3087.8,7.0271]
[1720499654289,0.1123514,3087.9,3087.8,3.23855]
[1720499654502,0.1123514,3087.9,3087.6,3.23866]
[1720499654647,0.1123514,3087.9,3087.6,3.23868]
[1720499655152,0.1123514,3087.9,3087.7,3.23865]
[1720499655354,0.1123514,3087.9,3087.8,3.3033115]
[1720499655860,0.1123514,3087.9,3087.8,6.4771]
[1720499656068,0.1123514,3087.9,3087.8,10.33040617]
[1720499656278,0.0500028,3088.6,3088.5,8.85152]
[1720499656455,0.0500028,3088.6,3088.5,13.18660902]
[1720499656640,0.0500028,3088.6,3088.5,18.43460902]
[1720499656840,0.0500028,3088.6,3088.5,10.02562]
[1720499657063,0.0500028,3088.6,3088.5,7.02562]
[1720499657266,4.2453,3090.7,3088.5,7.02562]
[1720499657267,0.1123514,3091.0,3088.5,2.5732]
[1720499657529,0.1123514,3091.0,3089.8,4.6246]
[1720499657668,0.1123514,3091.0,3089.4,2.248]
[1720499657862,0.1123514,3091.0,3088.6,5.3766]
[1720499658068,0.1123514,3091.0,3089.7,3.23653]
[1720499658069,2.255,3090.9,3089.7,3.23653]
[1720499658316,2.255,3090.9,3088.7,0.06472873]
[1720499658317,0.23673514,3090.8,3089.1,3.23711]
[1720499658468,0.23673514,3090.8,3089.2,3.23698]
[1720499658671,0.23673514,3090.8,3089.1,0.06473038]
[1720499658980,0.23673514,3090.8,3089.3,3.23688]
[1720499659192,0.24917351,3090.7,3089.5,3.23675]
[1720499659593,0.24917351,3090.7,3088.9,3.23735]
[1720499659792,0.24917351,3090.7,3089.0,0.55]
[1720499660016,0.24917351,3090.7,3088.7,0.06472979]
[1720499660017,0.24917351,3090.7,3089.1,3.23709]
[1720499660168,0.24917351,3090.7,3089.2,3.23707]
[1720499660371,0.24917351,3090.7,3089.3,0.55]
[1720499660571,0.24917351,3090.7,3088.9,3.23735]
[1720499660805,0.24917351,3090.7,3089.0,3.85199914]
[1720499661182,0.24917351,3090.7,3089.0,0.61472911]
[1720499661503,0.24917351,3090.7,3089.0,0.55]
[1720499661667,0.32491735,3090.6,3089.0,0.55]
[1720499661865,0.32491735,3090.6,3089.0,0.61472619]
[1720499662100,0.24917351,3090.7,3089.9,3.23633]
[1720499662414,0.24917351,3090.7,3090.0,3.23621]
[1720499662912,0.24917351,3090.7,3089.9,3.23632]
[1720499663639,0.24917351,3090.7,3090.0,3.23621]
[1720499663822,2.255,3090.9,3090.1,3.23613]
[1720499664025,2.255,3090.9,3090.2,3.30071939]
[1720499664337,0.1123514,3091.0,3090.3,3.23593]
[1720499664637,0.1123514,3091.0,3090.3,3.3006369]
[1720499665013,0.1123514,3091.0,3090.4,0.55]
[1720499665196,0.1123514,3091.0,3090.5,0.06469522]
[1720499665403,0.1123514,3091.0,3090.6,0.55]
[1720499665596,0.1123514,3091.0,3090.9,9.7059]
[1720499665812,0.1123514,3091.0,3090.9,15.5039]
[1720499666113,0.1123514,3091.0,3090.9,12.2686]
[1720499666326,0.1123514,3091.0,3090.9,15.5039]
[1720499666540,1.4e-06,3091.0,3090.9,15.5039]
[1720499666832,1.4e-06,3091.0,3090.9,12.2686]
[1720499667069,1.4e-06,3091.0,3090.9,3.2353]
[1720499667200,1.4e-06,3091.0,3090.9,3.2999956]
[1720499667540,1.4e-06,3091.0,3090.9,6.4706]
[1720499668235,1.4e-06,3091.0,3090.9,6.53528594]
[1720499668436,1.4e-06,3091.0,3090.9,6.4706]
[1720499669139,1.4e-06,3091.0,3090.9,9.7059]
[1720499669437,0.10054584,3091.3,3091.2,6.46996]
[1720499669640,0.10054584,3091.3,3091.2,6.53464058]
[1720499669824,0.10054584,3091.3,3091.2,9.76962058]
[1720499670003,0.10054584,3091.3,3091.2,7.08464058]
[1720499670916,0.10054584,3091.3,3090.5,0.3252]
[1720499671115,0.10054584,3091.3,3090.7,3.23543]
[1720499671310,0.10054584,3091.3,3090.5,3.30040149]
[1720499671540,0.10054584,3091.3,3090.8,3.2354]
[1720499671811,0.10054584,3091.3,3091.2,3.23498]
[1720499672411,0.10054584,3091.3,3091.0,3.23518]
[1720499672647,0.10054584,3091.3,3090.8,3.23538]
[1720499672854,0.10054584,3091.3,3090.8,3.30001207]
[1720499673034,0.10054584,3091.3,3090.7,3.23541]
[1720499673364,0.10054584,3091.3,3090.8,3.23538]
[1720499673666,0.10054584,3091.3,3091.0,3.23515]
[1720499673813,0.10054584,3091.3,3091.2,3.23498]
[1720499674019,0.10054584,3091.3,3091.2,7.01996]
[1720499675454,0.10054584,3091.3,3091.2,3.23498]
[1720499675760,0.10054584,3091.3,3091.2,3.78498]
[1720499676130,0.10054584,3091.3,3091.2,7.01996]
[1720499676330,2.3341,3092.3,3091.6,3.23449]
[1720499676749,2.3341,3092.3,3091.4,3.23474]
[1720499676750,7.36,3092.9,3092.1,3.23395]
[1720499677068,7.36,3092.9,3091.7,0.06467629]
[1720499677069,7.36,3092.9,3091.9,3.23423]
[1720499677272,1.982,3092.8,3092.0,3.23408]
[1720499677436,7.36,3092.9,3092.0,3.23408]
[1720499677766,7.36,3092.9,3091.8,3.23435]
[1720499677922,7.36,3092.9,3091.6,3.23457]
[1720499678267,7.36,3092.9,3091.5,3.23467]
[1720499678490,7.36,3092.9,3091.6,0.06468253]
[1720499678777,7.36,3092.9,3092.3,3.23382]
[1720499678956,2.3516,3093.0,3092.5,3.23362]
[1720499679159,2.59799206,3093.5,3092.7,3.23335]
[1720499679368,2.3803,3093.7,3092.8,3.23331]
[1720499679671,2.3803,3093.7,3092.7,3.23341]
[1720499679872,0.23803,3093.6,3091.9,3.29880514]
[1720499680059,0.23803,3093.6,3092.5,3.23355]
[1720499680246,0.23803,3093.6,3092.4,3.23372]
[1720499680448,2.3803,3093.7,3092.2,3.23393]
[1720499680449,0.261833,3093.5,3092.2,3.23393]
[1720499680649,0.261833,3093.5,3091.8,3.23434]
[1720499680650,2.2505,3093.4,3091.8,3.23434]
[1720499680842,2.2505,3093.4,3090.8,5.90238]
[1720499680843,2.2505,3093.4,3090.8,4.915]
[1720499681038,2.2505,3093.2,3091.1,3.23499]
[1720499681240,2.2505,3093.2,3090.9,0.06468309]
[1720499681241,2.2505,3093.2,3091.0,3.23517]
[1720499681538,2.4454,3093.0,3090.9,3.23528]
[1720499681752,2.4454,3092.8,3091.0,0.06468598]
[1720499681961,2.4454,3092.8,3090.7,3.23548]
[1720499682381,2.4454,3092.8,3090.8,3.23536]
[1720499683048,2.4454,3092.8,3090.5,3.30038127]
[1720499683049,2.3018,3092.7,3090.2,3.23594]
[1720499683382,2.3018,3092.7,3090.3,3.23588]
[1720499683383,2.3018,3092.4,3090.3,3.23588]
[1720499683677,2.3018,3092.4,3089.5,3.23669]
[1720499683678,2.2895,3091.9,3089.5,3.23669]
[1720499683887,2.74325,3091.8,3089.5,3.23669]
[1720499684041,2.2895,3091.4,3089.3,3.23696]
[1720499684449,2.2895,3091.4,3089.1,3.30189918]
[1720499684450,2.2895,3091.3,3089.1,3.30189918]
[1720499684650,2.2895,3091.1,3089.1,3.23718]
[1720499684849,2.2895,3091.1,3089.0,3.23728]
[1720499685069,2.2895,3091.1,3089.1,3.23715]
[1720499685373,2.2895,3091.1,3089.0,3.23729]
[1720499685574,2.2895,3090.9,3088.8,3.23744]
[1720499685775,1.12132175,3090.8,3088.8,3.23744]
[1720499686075,1.12132175,3090.8,3088.2,0.38993514]
[1720499686076,3.42532175,3090.7,3088.7,3.2376]
[1720499686276,3.42532175,3090.7,3088.8,3.23748]
[1720499686277,2.304,3090.7,3088.8,3.23748]
[1720499687143,2.304,3090.7,3089.3,3.23696]
[1720499687344,2.304,3090.7,3089.4,0.06472462]
[1720499688175,2.304,3090.7,3089.0,3.23726]
[1720499688395,0.2304,3090.6,3088.8,3.23742]
[1720499688689,0.2304,3090.6,3088.7,3.23757]
[1720499688900,2.3258,3090.5,3088.7,3.23757]
[1720499689065,2.3258,3090.4,3088.7,3.23757]
[1720499689385,2.3258,3090.4,3088.5,3.23779]
[1720499689891,2.3258,3090.4,3088.6,3.30243099]
[1720499690191,0.45738,3090.3,3088.6,3.30243099]
[1720499690501,0.45738,3090.3,3089.1,3.23718]
[1720499690659,0.45738,3090.3,3089.2,0.06473006]
[1720499691286,0.45738,3090.3,3088.8,3.23747]
[1720499691499,0.278318,3090.2,3088.6,3.2377]
[1720499691707,2.3698,3090.1,3088.4,3.23789]
[1720499692149,2.3698,3090.1,3088.3,3.23799]
[1720499692353,2.3698,3090.1,3088.4,0.06474412]
[1720499693188,2.3698,3090.1,3088.1,3.23822]
[1720499693404,2.3698,3089.9,3087.9,3.23841]
[1720499693567,2.3698,3089.9,3087.3,3.239]
[1720499693568,2.3698,3089.9,3087.4,0.0647525]
[1720499693768,12.46,3090.7,3089.4,3.23679]
[1720499693996,2.3698,3090.4,3089.5,3.30145015]
[1720499694176,2.3698,3090.4,3089.7,3.23655]
[1720499694375,2.3698,3090.4,3089.8,0.06471808]
[1720499695291,2.3698,3090.4,3089.5,0.06471808]
[1720499697811,2.3698,3090.4,3089.6,3.23656]
[1720499698110,2.3698,3090.4,3089.5,0.06471808]
[1720499698111,2.3698,3090.4,3089.5,3.30143507]
[1720499698319,2.3698,3090.4,3089.5,0.06471507]
[1720499698475,2.3698,3090.4,3089.0,3.23722]
[1720499698674,2.3698,3090.4,3089.1,0.61472342]
[1720499698973,2.3698,3090.4,3089.4,3.23687]
[1720499699175,2.3698,3090.4,3089.5,0.06472336]
[1720499700226,2.3698,3090.4,3089.9,3.23635]
[1720499700775,2.3698,3090.4,3089.5,3.23676]
[1720499700980,2.3698,3090.4,3089.1,3.78716]
[1720499701197,2.3698,3090.4,3089.2,3.23707]
[1720499701198,2.60678,3090.4,3089.2,3.23707]
[1720499701689,2.60678,3090.4,3089.3,3.30169684]
[1720499701900,2.60678,3090.4,3089.3,0.06472684]
[1720499702226,0.260678,3090.3,3089.2,3.30179683]
[1720499702519,0.260678,3090.3,3089.3,0.06472742]
[1720499704843,2.3929,3090.2,3087.8,2.56476955]
[1720499704996,2.3929,3090.2,3087.9,0.06474337]
[1720499705328,2.3929,3090.2,3088.1,3.23823]
[1720499705825,2.4332,3089.9,3088.0,3.23834]
[1720499706311,2.4332,3089.9,3088.1,3.2382]
[1720499706514,2.4332,3089.9,3088.2,0.0647484]
[1720499706927,2.4332,3089.9,3088.1,3.2382]
[1720499707226,2.4332,3089.9,3088.1,3.23815]
[1720499707227,0.46812,3089.8,3088.1,3.23815]
[1720499707548,2.4332,3089.9,3088.0,3.23824]
[1720499707843,2.4332,3089.9,3087.6,3.23874]
[1720499707992,2.3232,3089.7,3087.7,3.23864]
[1720499708187,2.3232,3089.7,3087.4,0.06474839]
[1720499708426,1.12179841,3089.6,3087.8,3.23852]
[1720499708629,2.489,3089.5,3087.9,0.06475614]
[1720499708804,2.489,3089.5,3087.9,3.30318614]
[1720499708805,0.2489,3089.4,3087.9,3.30318614]
[1720499709000,0.2489,3089.4,3088.1,3.23823]
[1720499709205,0.2489,3089.4,3088.2,0.06474898]
[1720499709615,0.2489,3089.4,3087.7,3.2386]
[1720499709911,7.5848,3089.9,3087.5,3.23878]
[1720499709912,2.3811,3089.3,3087.5,3.23878]
[1720499710111,2.3811,3089.2,3087.3,3.23907]
[1720499710428,2.3811,3089.0,3086.6,3.23974]
[1720499710743,2.3811,3088.8,3087.2,3.23917]
[1720499710906,1.12184584,3088.9,3086.9,3.23946]
[1720499710907,2.3811,3088.6,3086.9,3.23946]
[1720499711092,2.3811,3088.4,3086.9,3.23946]
[1720499711495,2.3811,3088.4,3086.6,3.23977]
[1720499711729,1.12209039,3088.3,3086.6,3.3045509]
[1720499711906,2.3811,3088.4,3086.6,3.23977]
[1720499712157,1.39532806,3088.3,3086.6,3.23977]
[1720499712302,0.27313946,3088.3,3087.0,3.23935]
[1720499712502,0.27313946,3088.3,3087.1,0.06477332]
[1720499712702,2.3811,3088.2,3086.8,3.23954]
[1720499712904,0.26542395,3088.1,3086.5,3.2399]
[1720499713132,2.3811,3087.9,3086.1,3.24024]
[1720499713433,2.3811,3087.9,3085.9,3.24052]
[1720499713434,2.3811,3087.7,3085.9,3.24052]
[1720499713632,2.248,3087.9,3085.9,3.24052]
[1720499713633,1.12238526,3087.6,3085.9,3.24052]
[1720499713801,2.2731,3087.5,3085.8,3.24064]
[1720499713998,2.2731,3087.3,3085.6,3.24076]
[1720499714217,2.4861,3087.1,3085.5,3.24093]
[1720499717035,2.4861,3087.0,3084.9,3.24157]
[1720499717532,2.4861,3087.0,3085.1,3.24137]
[1720499717748,2.4861,3087.0,3085.2,0.06481201]
[1720499717894,2.4861,3087.0,3084.8,3.24163]
[1720499718098,2.4861,3087.0,3084.9,3.24157]
[1720499718403,2.2517,3086.8,3084.9,3.24157]
[1720499718605,2.2517,3086.8,3085.0,3.24149]
[1720499718908,2.2517,3086.8,3084.8,3.24169]
[1720499719121,2.2517,3086.8,3084.9,3.24156]
[1720499719295,2.2517,3086.8,3085.0,3.24145]
[1720499719502,2.2517,3086.8,3085.1,0.0648168]
[1720499719701,2.2517,3086.8,3085.6,3.24076]
[1720499719961,2.2517,3086.8,3085.1,6.30608166]
[1720499720267,2.4384,3086.6,3085.2,0.55]
[1720499720401,2.4384,3086.6,3085.0,3.24148]
[1720499720739,2.4384,3086.6,3084.9,3.24157]
[1720499721035,2.71617616,3086.5,3084.4,3.24202]
[1720499721245,2.4384,3086.3,3084.4,3.24202]
[1720499721450,2.4384,3086.3,3084.3,3.24218]
[1720499721747,2.4384,3086.1,3084.3,3.24218]
[1720499721910,2.4384,3086.1,3084.4,3.24208]
[1720499723342,2.4384,3086.1,3083.7,3.24277]
[1720499723343,2.4384,3085.8,3083.7,3.2428]
[1720499723559,2.248,3085.9,3083.7,3.2428]
[1720499723560,2.4384,3085.6,3083.9,3.24264]
[1720499723761,2.4384,3085.6,3083.5,3.24304]
[1720499723762,2.4384,3085.3,3083.5,3.24304]
[1720499724056,2.4384,3085.1,3083.1,3.24339]
[1720499724617,2.4384,3085.0,3083.1,3.24339]
[1720499724818,2.4384,3084.9,3083.1,3.24339]
[1720499725444,2.4384,3084.9,3083.6,3.24294]
[1720499725751,3.0,3085.3,3083.5,3.24306]
[1720499725752,0.24384,3084.8,3083.5,3.24306]
[1720499725951,2.3749,3084.7,3083.3,3.30808505]
[1720499726127,2.3749,3084.7,3083.5,3.24305]
[1720499726462,2.3749,3084.7,3083.0,3.24357]
[1720499726648,2.3749,3084.5,3082.9,3.24367]
[1720499727759,2.3749,3084.5,3082.2,3.24435]
[1720499727760,2.4824,3084.7,3082.5,3.24409]
[1720499728058,2.4824,3084.3,3082.5,3.24409]
[1720499728217,2.95544,3084.2,3082.3,3.24431]
[1720499728415,2.95544,3084.2,3082.1,3.24453]
[1720499728416,2.4824,3084.1,3082.1,3.24453]
[1720499728726,2.4824,3083.9,3082.0,3.24462]
[1720499728960,4.4354,3083.8,3082.0,3.24462]
[1720499729276,2.4824,3083.3,3081.3,3.24537]
[1720499729418,2.4824,3083.1,3081.1,3.24559]
[1720499729842,2.4824,3083.0,3081.1,3.24559]
[1720499730473,2.4824,3083.0,3080.3,2.248]
[1720499730474,2.4824,3082.8,3080.3,2.248]
[1720499730619,2.327,3082.6,3080.6,3.24611]
[1720499730824,2.327,3082.6,3080.7,3.24601]
[1720499731041,2.327,3082.5,3080.7,3.24601]
[1720499731274,2.327,3082.5,3081.0,3.24569]
[1720499731275,0.5327,3082.4,3081.0,3.24569]
[1720499731570,0.5327,3082.4,3081.1,0.06490482]
[1720499731871,0.36580844,3082.3,3081.0,3.24569]
[1720499732235,0.36580844,3082.3,3080.8,3.24585]
[1720499732441,0.36580844,3082.3,3080.9,3.24577]
[1720499732637,0.07983844,3082.3,3081.0,0.06490477]
[1720499732889,0.07983844,3082.3,3081.7,3.24493]
[1720499733093,0.07983844,3082.3,3081.8,3.85963474]
[1720499733383,2.327,3082.5,3081.8,3.85963474]
[1720499733678,2.327,3082.5,3081.2,3.24547]
[1720499733842,2.327,3082.5,3081.3,0.55]
[1720499734195,2.327,3082.5,3080.8,3.2459]
[1720499734196,2.5597,3082.5,3080.8,3.2459]
[1720499734370,2.5597,3082.5,3081.3,3.24537]
[1720499734539,2.327,3082.5,3081.4,3.31014708]
[1720499734978,2.327,3082.5,3081.6,3.24497]
[1720499735279,7.36,3083.4,3082.1,3.24451]
[1720499735482,7.36,3084.1,3082.4,3.2442]
[1720499735632,7.36,3084.1,3082.5,0.06487327]
[1720499736035,7.36,3084.1,3082.3,0.06487324]
[1720499736036,9.313,3084.1,3082.3,0.06487324]
[1720499736281,9.313,3084.1,3081.5,3.24512]
[1720499736282,4.201,3083.9,3081.5,3.24512]
[1720499736482,4.201,3083.4,3081.2,3.24547]
[1720499736653,0.4201,3083.3,3081.2,3.24547]
[1720499736854,1.953,3083.4,3081.3,3.24538]
[1720499737074,1.5,3083.3,3081.3,3.24538]
[1720499737586,3.0,3083.3,3081.3,3.24538]
[1720499737797,0.3395013,3084.0,3081.4,0.06489321]
[1720499737941,0.3395013,3084.0,3082.4,3.24418]
[1720499738280,2.4127,3083.5,3082.5,0.06487314]
[1720499739254,0.07110191,3083.4,3082.5,0.06487314]
[1720499739779,0.07110191,3083.4,3082.5,3.30898314]
[1720499740547,0.07110191,3083.4,3082.5,0.06487314]
[1720499740746,0.07110191,3083.4,3081.5,7.99]
[1720499740747,0.4684821,3083.4,3082.1,3.24454]
[1720499740973,0.4684821,3083.4,3082.2,3.24443]
[1720499741286,0.07110191,3083.4,3082.5,3.24406]
[1720499741500,0.07110191,3083.4,3081.5,11.56031]
[1720499741501,0.07110191,3083.4,3083.3,3.24327]
[1720499741783,12.46,3086.0,3083.3,3.24327]
[1720499741784,2.3362,3084.7,3084.2,3.24225]
[1720499741985,2.3362,3085.8,3084.3,0.06483481]
[1720499742137,2.3362,3085.8,3084.3,0.55]
[1720499742484,0.35822,3085.7,3084.5,3.24198]
[1720499742693,2.3362,3085.8,3084.6,0.06482909]
[1720499742850,0.06494418,3085.6,3083.7,3.24285]
[1720499743039,0.06494418,3085.6,3083.2,3.24335]
[1720499743040,2.3362,3085.5,3083.2,3.24335]
[1720499743237,4.2892,3085.3,3083.0,3.24359]
[1720499743440,1.953,3085.0,3082.7,3.2439]
[1720499743667,1.953,3084.7,3082.4,3.24419]
[1720499743883,2.3362,3084.6,3082.6,3.24396]
[1720499744075,2.40101076,3084.6,3082.7,0.06486253]
[1720499744239,2.40101076,3084.6,3083.3,3.24324]
[1720499744440,2.40101076,3084.6,3083.7,3.24282]
[1720499744653,2.3362,3084.6,3083.6,3.24296]
[1720499744853,2.56982,3084.6,3082.9,3.24367]